[Event "US Masters 2022"]
[Site "Charlotte"]
[Date "2022.11.26"]
[Round "6.2"]
[White "Oparin, Grigoriy"]
[Black "Balakrishnan, Praveen"]
[Result "1/2-1/2"]
[ECO "D20"]
[WhiteElo "2683"]
[BlackElo "2510"]
[Annotator "TA"]
[PlyCount "73"]
[EventDate "2022.11.23"]
[EventType "swiss"]
[EventCountry "USA"]
[SourceTitle "playchess.com"]
[Source "ChessBase"]
[SourceQuality "1"]
[TimeControl "5400+30"]

{[%evp 25,73,35,36,29,28,8,15,8,8,7,0,8,5,0,16,4,10,8,8,8,18,16,23,9,10,8,9,2,8,8,8,8,8,8,8,8,8,8,8,8,8,3,8,8,8,3,25,8,8,8]} 1. d4 {[%emt 0:00:02]} Nf6 {[%emt 0:12:59]} 2. c4 {[%emt 0:00:06]} e6 {[%emt 0:00:04]} 3. Nf3 {[%emt 0:00:10]} d5 {[%emt 0:00:06]} 4. Nc3 {[%emt 0:00:05]} Bb4 {[%emt 0:00:08]} 5. Qa4+ {[%emt 0:00:29]} Nc6 {[%emt 0:00:06]} 6. e3 {[%emt 0:00:31]} O-O {[%emt 0:00:28]} 7. Qc2 {[%emt 0:00:53]} dxc4 {[%emt 0:10:24]} 8. Bxc4 {[%emt 0:00:55]} Bd6 {[%emt 0:01:38]} 9. O-O {[%emt 0:06:33]} e5 {[%emt 0:01:57]} 10. h3 {[%emt 0:00:07]} exd4 {[%emt 0:10:14]} 11. exd4 {[%emt 0:01:36]} Nb4 {[%emt 0:00:50]} 12. Qd1 {[%emt 0:26:52]} h6 {[%emt 0:19:29]} 13. a3 {[%emt 0:02:03]} Nc6 {[%emt 0:00:34]} 14. Qc2 {[%emt 0:02:04] D20: Queen's Gambit Accepted: 3 e3 and 3 e4.} Ne7 {[%emt 0:03:13]} 15. Re1 {[%emt 0:06:21]} c6 {[%emt 0:04:26]} 16. Ne5 {[%emt 0:02:59]} Ned5 {[%emt 0:05:08] [#]} (16... Bc7 {keeps more tension.} 17. Qb3 Ned5 18. Nxd5 Nxd5 19. Qg3 Qf6) 17. Bxd5 $146 {[%emt 0:02:28]} (17. Qb3 {with more complications.} Bc7 18. Nxd5 Nxd5 19. Qg3) ({Predecessor:} 17. Qd3 Be6 18. Bd2 Re8 19. Nxd5 Bxd5 20. Re2 Bxc4 21. Qxc4 Nd5 22. Rae1 Qc7 23. b4 a6 24. a4 Re6 25. b5 axb5 26. axb5 {½-½ (36) Mamedyarov,S (2756)-Wojtaszek,R (2736) Bilbao 2014}) 17... Nxd5 {[%emt 0:03:45]} 18. Nxd5 {[%emt 0:00:44]} cxd5 {[%emt 0:00:06]} 19. Qb3 {[%emt 0:01:11]} (19. Bf4 {is interesting.} Qb6 20. Qd3 Re8 21. b4) 19... Bc7 {[%emt 0:08:55]} 20. Bf4 {[%emt 0:09:31]} Bb6 {[%emt 0:01:43]} (20... Qh4 {feels hotter.} 21. Ng6 fxg6 22. Qxd5+ Kh7) 21. Qg3 {[%emt 0:03:53]} Qf6 {[%emt 0:02:32]} 22. Nd3 {[%emt 0:01:05]} Bf5 {[%emt 0:02:36] [#] Threatens to win with ...Bxd3.} 23. Nc5 {[%emt 0:05:39]} Rfe8 {[%emt 0:02:28]} (23... Qxd4 $2 24. Be5 $18 (24. Nxb7 Qd3 $11) (24. Nxb7 Qd3 $11)) 24. Rad1 {[%emt 0:06:58]} Qg6 {[%emt 0:03:24]} 25. Qxg6 {[%emt 0:02:40]} Bxg6 {[%emt 0:00:22]} 26. b4 {[%emt 0:00:08]} Bc2 {[%emt 0:01:40]} 27. Rc1 {[%emt 0:07:11] [#] Rxe8+ is the strong threat.} Bxc5 {[%emt 0:00:15]} 28. bxc5 {[%emt 0:00:58] Hoping for Rxe8+.} Ba4 {[%emt 0:01:20]} 29. f3 {[%emt 0:00:08]} Rxe1+ {[%emt 0:00:31]} 30. Rxe1 $11 {[%emt 0:00:04][%mdl 4096] Endgame KRB-KRB} Re8 {[%emt 0:00:07]} 31. Rb1 {[%emt 0:11:36]} Bc6 {[%emt 0:00:40]} 32. Kf2 {[%emt 0:00:00]} f6 {[%emt 0:00:34]} 33. g4 {[%emt 0:00:00]} Kf7 {[%emt 0:00:44]} 34. h4 {[%emt 0:00:00]} g5 {[%emt 0:01:38]} 35. Bg3 {[%emt 0:00:00]} Kg6 {[%emt 0:01:07]} 36. hxg5 {[%emt 0:00:00]} hxg5 {[%emt 0:00:32]} 37. Re1 {[%emt 0:00:00] Weighted Error Value: White=0.04 (flawless) /Black=0.03 (flawless)} 1/2-1/2

[Event "US Masters 2022"]
[Site "Charlotte"]
[Date "2022.11.26"]
[Round "6.3"]
[White "Liang, Awonder"]
[Black "Druska, Juraj"]
[Result "1-0"]
[ECO "A17"]
[WhiteElo "2630"]
[BlackElo "2511"]
[Annotator "TA"]
[PlyCount "81"]
[EventDate "2022.11.23"]
[EventType "swiss"]
[EventCountry "USA"]
[SourceTitle "playchess.com"]
[Source "ChessBase"]
[SourceQuality "1"]
[TimeControl "5400+30"]

{[%evp 9,81,8,16,12,19,13,25,19,14,16,17,12,16,24,16,19,16,12,7,7,28,16,50,48,44,35,80,72,72,45,59,59,205,227,255,246,236,195,198,207,203,204,217,215,317,243,265,235,253,252,375,366,793,856,857,856,827,795,833,817,758,722,1175,1127,1105,1097,824,716,29964,917,29960,29962,6596,5520]} 1. Nf3 {[%emt 0:03:11]} e6 {[%emt 0:04:33]} 2. c4 {[%emt 0:00:10]} d5 {[%emt 0:00:22]} 3. e3 {[%emt 0:00:01]} Nf6 {[%emt 0:00:25]} 4. Nc3 {[%emt 0:00:02]} a6 {[%emt 0:02:03]} 5. b3 {[%emt 0:00:05]} Bd6 {[%emt 0:00:12]} 6. Bb2 {[%emt 0:00:37] A17: English Opening: 1...Nf6 with ...Bb4.} b6 {[%emt 0:00:23]} 7. g3 {[%emt 0:08:32]} O-O {[%emt 0:01:28]} 8. Bg2 {[%emt 0:00:02] White has an edge.} Bb7 {[%emt 0:00:22]} 9. cxd5 {[%emt 0:00:03]} exd5 {[%emt 0:00:59]} 10. O-O {[%emt 0:00:03]} Re8 {[%emt 0:02:25]} 11. Rc1 {[%emt 0:00:02]} Nbd7 {[%emt 0:00:52]} 12. Re1 {[%emt 0:04:27]} Rc8 {[%emt 0:06:21]} 13. d4 {[%emt 0:01:03]} Qe7 {[%emt 0:00:45] [#]} 14. Re2 $146 {[%emt 0:01:37]} ({Predecessor:} 14. Ne2 Bb4 15. Rf1 Ba3 16. Qc2 Bd6 17. Nf4 c5 18. Qe2 Ne4 19. Rfd1 Ndf6 20. dxc5 bxc5 {1-0 (70) Suarez Gomez,J (2433)-Rios,C (2530) Linares 2019}) 14... g6 {[%emt 0:16:03]} 15. Rec2 {[%emt 0:00:33]} (15. Nd2 $5 {[%cal Re3e4]}) 15... h5 {[%emt 0:09:57]} 16. Ne2 {[%emt 0:01:03]} Ng4 {[%emt 0:03:39]} 17. Nf4 {[%emt 0:17:23]} Ndf6 {[%emt 0:01:40]} 18. Nd3 {[%emt 0:01:40]} c5 {[%emt 0:09:19][%cal Oc5c4]} 19. dxc5 {[%emt 0:08:36]} bxc5 {[%emt 0:00:23]} 20. h3 {[%emt 0:02:45][%cal Bh2h3,Bh3g4,Bg4g5][%mdl 32]} c4 {[%emt 0:08:13] Loses the game.} (20... Nxe3 $1 $14 21. Bxf6 (21. fxe3 Qxe3+ 22. Nf2 Ne4 $14) 21... Qxf6 22. fxe3 c4) 21. hxg4 $18 {[%emt 0:06:38]} cxd3 {[%emt 0:02:42]} 22. Rxc8 {[%emt 0:00:23]} (22. Qxd3 Rxc2 23. Rxc2 (23. Qxc2 hxg4 24. Nd4 Rc8 $14) 23... hxg4 $14) 22... Bxc8 {[%emt 0:00:52]} 23. g5 {[%emt 0:01:00]} ({Don't play} 23. Qxd3 $6 Bxg4 24. Rc6 (24. Qxa6 Ne4 $16) 24... Bxf3 25. Bxf3 Be5) 23... Ne4 {[%emt 0:00:39][%cal Oe4f2] Hoping for ...Nxf2!} 24. Qxd3 {[%emt 0:00:03]} Ba3 {[%emt 0:00:14] [#]} 25. Rxc8 $1 {[%emt 0:26:35][%mdl 512]} Rxc8 {[%emt 0:00:19]} 26. Qxa6 $40 {[%emt 0:00:02][%mdl 128] Black is in trouble.} Rc2 {[%emt 0:02:59]} (26... Bxb2 {was necessary.} 27. Qxc8+ Kg7) 27. Qxa3 {[%emt 0:06:21] Chess con chili.} Qxa3 {[%emt 0:01:02]} 28. Bxa3 {[%emt 0:00:01] Nd4 is the strong threat.} Rxa2 {[%emt 0:00:21]} 29. Be7 {[%emt 0:00:40]} Nxf2 {[%emt 0:01:23]} (29... Ra1+ $142 30. Bf1 Ra2) 30. Ne5 {[%emt 0:01:51]} Nd1 $2 {[%emt 0:05:38]} (30... Rd2 31. Bb4 Re2 32. Bxd5 Nh3+ 33. Kf1 Rxe3) 31. Bxd5 {[%emt 0:03:28]} Nxe3 {[%emt 0:00:02]} 32. Bxf7+ {[%emt 0:00:10]} Kg7 {[%emt 0:00:01]} 33. Bf6+ {[%emt 0:00:57]} Kf8 {[%emt 0:00:00]} 34. Bxg6 {[%emt 0:00:13]} Rg2+ {[%emt 0:00:08]} 35. Kh1 {[%emt 0:00:01]} Rxg3 {[%emt 0:00:08]} 36. Be4 {[%emt 0:02:29]} ({Weaker is} 36. Bxh5 Rh3+ 37. Kg1 Rxh5 $11) 36... Nd1 {[%emt 0:09:13]} 37. Bd5 {[%emt 0:00:21]} Nc3 {[%emt 0:09:51]} 38. Kh2 {[%emt 0:00:53] And now Ng6+ would win.} Re3 {[%emt 0:02:32]} 39. Nd7+ {[%emt 0:00:17]} Ke8 {[%emt 0:00:05]} 40. Bxc3 {[%emt 0:00:03]} Rxc3 {[%emt 0:00:12] [#]} 41. g6 $1 {[%emt 0:00:02] Weighted Error Value: White=0.09 (flawless) /Black=0.56} 1-0

[Event "US Masters 2022"]
[Site "Charlotte"]
[Date "2022.11.26"]
[Round "6.4"]
[White "Antipov, Mikhail Al."]
[Black "Rahul Srivatshav P"]
[Result "1/2-1/2"]
[ECO "C07"]
[WhiteElo "2608"]
[BlackElo "2498"]
[Annotator "TA"]
[PlyCount "44"]
[EventDate "2022.11.23"]
[EventType "swiss"]
[EventCountry "USA"]
[SourceTitle "playchess.com"]
[Source "ChessBase"]
[SourceQuality "1"]
[TimeControl "5400+30"]

{[%evp 23,44,16,29,24,31,8,8,11,18,0,37,19,26,33,37,33,113,5,23,0,0,-5,20]} 1. e4 {[%emt 0:08:37]} e6 {[%emt 0:03:07]} 2. d4 {[%emt 0:00:17]} d5 {[%emt 0:00:36]} 3. Nd2 {[%emt 0:00:26]} c5 {[%emt 0:00:12]} 4. Ngf3 {[%emt 0:00:05]} cxd4 {[%emt 0:00:10]} 5. exd5 {[%emt 0:00:02]} Qxd5 {[%emt 0:00:05]} 6. Bc4 {[%emt 0:00:03]} Qd6 {[%emt 0:00:08]} 7. O-O {[%emt 0:00:04]} Nf6 {[%emt 0:00:27]} 8. Nb3 {[%emt 0:00:03]} Nc6 {[%emt 0:00:10]} 9. Nbxd4 {[%emt 0:00:03]} Nxd4 {[%emt 0:00:07]} 10. Nxd4 {[%emt 0:00:04]} Be7 {[%emt 0:00:12][%cal Bf8e7,Be7d6,Bd6c5][%mdl 32]} 11. c3 {[%emt 1:26:16]} O-O {[%emt 0:00:08]} 12. Qf3 {[%emt 0:00:00]} Qc7 {[%emt 0:00:06]} 13. Bb3 {[%emt 0:00:00] C07: French Tarrasch: 3...c5, 4 Ngf3 and 4 exd5 Qxd5.} a5 {[%emt 0:00:04]} 14. a4 {[%emt 0:00:00]} (14. Bf4 {is more complex.} e5 15. Bg3 Bg4 16. Qd3) 14... Bd7 {[%emt 0:01:51]} 15. Re1 {[%emt 0:00:00]} Bd6 {[%emt 0:00:43] [#]} 16. g3 $146 {[%emt 0:00:00]} ({Predecessor:} 16. h3 Bc6 17. Nxc6 bxc6 18. Bc2 Rfe8 19. Bg5 Nd5 20. Rad1 Rab8 21. Bc1 g6 22. h4 {½-½ (39) Vykouk,J (2421)-Lewtak,D (2365) Skalica 2020}) 16... e5 {[%emt 0:14:28]} 17. Nb5 {[%emt 0:00:00]} Bxb5 {[%emt 0:00:10]} 18. axb5 {[%emt 0:00:00]} e4 {[%emt 0:00:33]} 19. Qe2 {[%emt 0:00:00]} Rfe8 {[%emt 0:22:56]} (19... h6 $14) 20. Ra4 {[%emt 0:00:00]} ({White should try} 20. Be3 $16) 20... Bc5 $1 $11 {[%emt 0:11:24]} 21. Bc2 {[%emt 0:00:00]} (21. Bg5 $5 {[%cal Rg5f6]} Qe5 22. Bxf6 Qxf6 23. Kg2 $11 (23. Rxe4 $2 {perishes.} Rxe4 24. Qxe4 Bxf2+ 25. Kg2 Bxe1 $19)) 21... h6 {[%emt 0:12:07]} 22. Bxe4 {[%emt 0:00:00]} Qb6 {[%emt 0:00:57] Weighted Error Value: White=0.23 (precise) /Black=0.16 (very precise)} 1/2-1/2

[Event "US Masters 2022"]
[Site "Charlotte"]
[Date "2022.11.26"]
[Round "6.5"]
[White "Burke, John M"]
[Black "Grinberg, Eyal"]
[Result "1/2-1/2"]
[ECO "B90"]
[WhiteElo "2580"]
[BlackElo "2491"]
[Annotator "TA"]
[PlyCount "66"]
[EventDate "2022.11.23"]
[EventType "swiss"]
[EventCountry "USA"]
[SourceTitle "playchess.com"]
[Source "ChessBase"]
[SourceQuality "1"]
[TimeControl "5400+30"]

{[%evp 15,66,26,35,21,23,0,48,53,39,52,44,41,62,56,56,51,54,52,50,41,50,58,106,87,106,108,95,94,96,99,113,106,128,130,125,125,134,134,133,112,104,0,0,0,0,0,0,0,0,0,0,0,0]} 1. e4 {[%emt 0:00:03]} c5 {[%emt 0:11:32]} 2. Nf3 {[%emt 0:00:07]} d6 {[%emt 0:00:04]} 3. d4 {[%emt 0:00:07]} cxd4 {[%emt 0:00:16]} 4. Nxd4 {[%emt 0:00:04]} Nf6 {[%emt 0:00:04]} 5. Nc3 {[%emt 0:00:05]} a6 {[%emt 0:00:04]} 6. Be3 {[%emt 0:00:07]} e5 {[%emt 0:00:09]} 7. Nb3 {[%emt 0:00:07]} Be6 {[%emt 0:00:06]} 8. f3 {[%emt 0:00:16][%cal Bf2f3,Bf3f4,Bf4f5][%mdl 32]} h5 {[%emt 0:00:06]} 9. Be2 {[%emt 0:00:32] B90: Sicilian Najdorf: Unusual White 6th moves, 6 Be3 Ng4 and 6 Be3 e5.} Nbd7 {[%emt 0:00:23]} 10. f4 {[%emt 0:00:16]} Rc8 {[%emt 0:05:19]} (10... g6 $11) 11. f5 $14 {[%emt 0:02:58] White is slightly better.} Bc4 {[%emt 0:00:22]} 12. Bxc4 {[%emt 0:00:16]} Rxc4 {[%emt 0:00:06]} 13. Qd3 {[%emt 0:00:06]} Qc7 {[%emt 0:10:51][%cal Od6d5] [#]} 14. Nd2 $146 {[%emt 0:09:15][%cal Bb3d2,Bd2c4,Bc4e3,Be3d5][%mdl 32] Inhibits d5. White is more active.} ({Predecessor:} 14. O-O-O b5 15. Kb1 Be7 16. h3 O-O 17. g4 Rxc3 18. bxc3 Qc6 19. Bg5 Rc8 20. Rhe1 {1-0 (35) Movsesian,S (2595)-Grooten,H (2395) Cappelle la Grande 1998}) 14... Rc6 {[%emt 0:02:21]} 15. O-O-O {[%emt 0:01:26]} Be7 {[%emt 0:02:02]} 16. h3 {[%emt 0:12:40][%cal Og2g4]} (16. Kb1 {is interesting.} b5 17. Nd5 Qa5 18. h3) 16... h4 {[%emt 0:10:17]} 17. Rhg1 {[%emt 0:03:44]} Qa5 {[%emt 0:05:25]} 18. Kb1 {[%emt 0:14:28]} Nc5 {[%emt 0:08:56]} (18... b5 $14 {deserves consideration.}) 19. Nc4 {[%emt 0:03:36]} Qb4 {[%emt 0:03:51]} 20. Bxc5 {[%emt 0:00:31]} Qxc5 {[%emt 0:00:23] [#]} 21. Ne3 {[%emt 0:00:40]} Nh5 {[%emt 0:05:16]} 22. Ned5 {[%emt 0:13:18]} Bg5 {[%emt 0:01:24]} 23. Qf3 {[%emt 0:02:09]} f6 {[%emt 0:04:14]} 24. Rge1 {[%emt 0:05:02]} Kf7 {[%emt 0:04:13]} 25. a3 {[%emt 0:01:21][%cal Ba2a3,Ba3a4][%mdl 32]} a5 {[%emt 0:02:23] Inhibits Nb4.} 26. a4 {[%emt 0:02:31]} Ng3 {[%emt 0:01:29]} 27. Rd3 {[%emt 0:02:03]} Rhc8 {[%emt 0:01:31]} 28. Qd1 {[%emt 0:01:18]} (28. Ka1 $16) 28... Qf2 $11 {[%emt 0:01:20] The position is equal.} 29. Rg1 {[%emt 0:04:28]} Kf8 {[%emt 0:04:21]} 30. Rf3 {[%emt 0:02:21]} Qd2 {[%emt 0:02:20]} 31. Rd3 {[%emt 0:00:39]} Qf2 {[%emt 0:00:41]} 32. Rf3 {[%emt 0:05:29]} Qd2 {[%emt 0:00:16]} 33. Rd3 {[%emt 0:01:24]} Qf2 {[%emt 0:00:08] Weighted Error Value: White=0.11 (very precise) /Black=0.07 (flawless)} 1/2-1/2

[Event "US Masters 2022"]
[Site "Charlotte"]
[Date "2022.11.26"]
[Round "6.6"]
[White "Caglar, Sila"]
[Black "Hambleton, Aman"]
[Result "1-0"]
[ECO "B48"]
[WhiteElo "2268"]
[BlackElo "2437"]
[Annotator "TA"]
[PlyCount "59"]
[EventDate "2022.11.23"]
[EventType "swiss"]
[EventCountry "USA"]
[SourceTitle "playchess.com"]
[Source "ChessBase"]
[SourceQuality "1"]
[TimeControl "5400+30"]

{[%evp 14,59,20,11,41,33,60,0,39,0,12,0,53,63,82,43,47,39,54,11,32,-7,95,85,197,175,209,202,181,181,195,191,772,778,784,778,765,760,745,775,762,748,1032,811,29985,956,29997,687]} 1. e4 {[%emt 1:31:00]} c5 {[%emt 0:00:35]} 2. Nf3 {[%emt 0:00:00]} e6 {[%emt 0:00:10]} 3. d4 {[%emt 0:00:00]} cxd4 {[%emt 0:00:08]} 4. Nxd4 {[%emt 0:00:00]} Nc6 {[%emt 0:03:24]} 5. Nc3 {[%emt 0:00:00]} Qc7 {[%emt 0:00:08]} 6. Be3 {[%emt 0:00:00]} a6 {[%emt 0:00:13]} 7. Qd2 {[%emt 0:00:00]} Nf6 {[%emt 0:01:45]} 8. f3 {[%emt 0:00:00]} h5 {[%emt 0:05:07] Inhibits g4. B48: Sicilian: Taimanov: 5 Nc3 Qc7 6 Be3 a6 without Be2.} 9. O-O-O {[%emt 0:00:00]} b5 {[%emt 0:00:16]} 10. Nb3 {[%emt 0:00:00]} (10. Nxc6 $14 Qxc6 11. Bd3 (11. e5 b4 $11)) 10... Ne5 {[%emt 0:19:41] [#] The position is equal.} 11. Bd4 $146 {[%emt 0:00:00]} ({Predecessor:} 11. Kb1 Rb8 12. Bd4 d6 13. f4 Ned7 14. a3 Be7 15. Be2 Bb7 16. Bf3 e5 17. Be3 {0-1 (34) Bitoon,R (2430)-Ghorbani,M (2322) Tagaytay City 2004}) 11... Bb7 {[%emt 0:03:51]} 12. Qf2 {[%emt 0:00:00]} Nc4 {[%emt 0:17:15]} (12... Rc8 $11) 13. Bxc4 $14 {[%emt 0:00:00]} bxc4 {[%emt 0:08:09]} 14. Bb6 {[%emt 0:00:00]} Qf4+ {[%emt 0:03:02]} 15. Nd2 {[%emt 0:00:00] Strongly threatening g3.} Rc8 $1 {[%emt 0:01:14]} 16. Qd4 {[%emt 0:00:00]} Ba8 {[%emt 0:31:20]} 17. a4 {[%emt 0:00:00]} (17. Kb1 $5 {[%cal Rd2c4]}) 17... d6 {[%emt 0:01:49]} (17... Bb4 $11) 18. g3 $16 {[%emt 0:00:00]} Qe5 {[%emt 0:00:34] [#]} (18... Qh6 $16) 19. Qe3 $1 $36 {[%emt 0:00:00][%mdl 2048] Hoping for f4. White has strong initiative.} (19. Nxc4 $6 Qxd4 20. Rxd4 d5 $16) 19... Nd7 {[%emt 0:00:41]} 20. f4 {[%emt 0:00:00] Against h4} Qf6 {[%emt 0:00:09]} 21. Rhe1 {[%emt 0:00:00]} Nxb6 {[%emt 0:00:55]} 22. Qxb6 {[%emt 0:00:00]} Be7 $2 {[%emt 0:00:30]} (22... Qd8 23. Qxa6 Qc7) 23. e5 {[%emt 0:00:00]} dxe5 {[%emt 0:00:14]} 24. Nde4 {[%emt 0:00:00]} ({Not} 24. Rxe5 O-O $16) (24. fxe5 Qg5 $14) 24... Qg6 {[%emt 0:00:44]} 25. Nd6+ {[%emt 0:00:00]} (25. Qxa6 O-O $11) 25... Bxd6 {[%emt 0:00:13]} 26. Qxd6 {[%emt 0:00:00] Threatening mate with Qd7+.} Bc6 {[%emt 0:00:43] Inhibits Qd7+.} 27. Rxe5 {[%emt 0:00:00]} ({Less strong is} 27. Qxe5 O-O $16) 27... Qg4 {[%emt 0:00:35]} 28. Ne4 {[%emt 0:00:00]} Qf3 {[%emt 0:00:33] [#]} 29. Ng5 {[%emt 0:00:00]} (29. Rxe6+ $142 $1 {[%mdl 512]} fxe6 30. Qxe6+ Kf8 31. Qxc8+ Be8 32. Qf5+ Kg8 33. Rd8 Qf1+ 34. Kd2) 29... Qg2 {[%emt 0:00:29] [#]} 30. Rxe6+ $1 {[%emt 0:00:00][%mdl 512] Weighted Error Value: White=0.20 (precise) /Black=0.91} 1-0

[Event "US Masters 2022"]
[Site "Charlotte"]
[Date "2022.11.26"]
[Round "6.7"]
[White "Beradze, Irakli"]
[Black "Yoo, Christopher Woojin"]
[Result "1/2-1/2"]
[ECO "A38"]
[WhiteElo "2494"]
[BlackElo "2573"]
[Annotator "TA"]
[PlyCount "43"]
[EventDate "2022.11.23"]
[EventType "swiss"]
[EventCountry "USA"]
[SourceTitle "playchess.com"]
[Source "ChessBase"]
[SourceQuality "1"]
[TimeControl "5400+30"]

{[%evp 17,43,-9,-4,-7,-12,-28,-40,-29,0,0,0,0,0,0,0,0,0,0,0,0,0,0,0,0,0,0,0,0]} 1. Nf3 {[%emt 0:09:40]} c5 {[%emt 0:00:06]} 2. c4 {[%emt 0:00:37]} Nf6 {[%emt 0:02:04]} 3. Nc3 {[%emt 0:00:17]} d5 {[%emt 0:01:26]} 4. cxd5 {[%emt 0:01:49]} Nxd5 {[%emt 0:00:05]} 5. g3 {[%emt 0:00:06]} Nc6 {[%emt 0:02:21]} 6. Bg2 {[%emt 0:00:06]} g6 {[%emt 0:00:32]} 7. d3 {[%emt 0:05:47]} Bg7 {[%emt 0:04:54]} 8. Bd2 {[%emt 1:16:08]} O-O {[%emt 0:01:29]} 9. O-O {[%emt 0:00:00]} b6 {[%emt 0:04:20]} 10. Nxd5 {[%emt 0:00:00] A38: Symmetrical English vs ...g6: 4 Bg2 Bg7 5 Nf3 Nf6.} Qxd5 {[%emt 0:00:06]} 11. Ne5 {[%emt 0:00:00]} Qxe5 {[%emt 0:00:06]} 12. Bxc6 {[%emt 0:00:00] Black is slightly better.} Bg4 {[%emt 0:08:14]} 13. Bc3 {[%emt 0:00:00] [#] The position is equal.} Qxe2 $146 {[%emt 0:09:03]} ({Predecessor:} 13... Qe6 14. Bxa8 Bxe2 15. Bd5 Bxd1 16. Bxe6 Be2 17. Rfe1 {1-0 (17) Kasel,A (1572)-Bollnow,A (1426) Malchow 2015}) 14. Qxe2 {[%emt 0:00:00]} Bxe2 {[%emt 0:02:07]} 15. Bxg7 {[%emt 0:00:00]} Kxg7 {[%emt 0:00:06]} 16. Rfe1 {[%emt 0:00:00][%cal Oc6a8]} Rac8 {[%emt 0:00:08]} 17. Bb5 {[%emt 0:00:00]} Bf3 {[%emt 0:01:26] ...e6 is the strong threat.} 18. Rxe7 {[%emt 0:00:00]} a5 {[%emt 0:01:49]} 19. Rae1 {[%emt 0:00:00]} Rfd8 {[%emt 0:01:35]} 20. Bc4 {[%emt 0:00:00]} Bd5 {[%emt 0:00:48]} 21. Ra7 {[%emt 0:00:00]} Rc6 {[%emt 0:03:22] And now ...Bxc4 would win.} 22. Ree7 {[%emt 0:07:00] Weighted Error Value: White=0.02 (flawless) /Black=0.04 (flawless)} 1/2-1/2

[Event "US Masters 2022"]
[Site "Charlotte"]
[Date "2022.11.26"]
[Round "6.8"]
[White "Cordova, Emilio"]
[Black "Macovei, Andrei"]
[Result "1/2-1/2"]
[ECO "E60"]
[WhiteElo "2561"]
[BlackElo "2482"]
[Annotator "TA"]
[PlyCount "69"]
[EventDate "2022.11.23"]
[EventType "swiss"]
[EventCountry "USA"]
[SourceTitle "playchess.com"]
[Source "ChessBase"]
[SourceQuality "1"]
[TimeControl "5400+30"]

{[%evp 16,69,16,-8,35,37,20,14,72,39,56,59,93,105,130,129,116,135,131,136,171,172,157,139,139,114,114,116,123,66,66,41,35,27,65,65,65,50,57,49,88,30,30,34,30,30,30,30,30,0,0,0,16,16,16,0]} 1. Nf3 {[%emt 0:01:47]} Nf6 {[%emt 0:05:13]} 2. e3 {[%emt 0:00:56]} g6 {[%emt 0:01:55]} 3. d4 {[%emt 0:00:55]} Bg7 {[%emt 0:00:23]} 4. Be2 {[%emt 0:00:30]} O-O {[%emt 0:01:51]} 5. c4 {[%emt 0:00:14]} d6 {[%emt 0:02:41]} 6. Nc3 {[%emt 0:00:08]} Nbd7 {[%emt 0:13:12]} 7. b3 {[%emt 0:01:55]} e5 {[%emt 0:00:53]} 8. Bb2 {[%emt 0:00:07]} Re8 {[%emt 0:01:07]} 9. Qc2 {[%emt 0:00:31]} Nf8 {[%emt 0:05:11] E60: King's Indian: Unusual lines and Fianchetto Variation without Nc3.} 10. dxe5 {[%emt 0:31:17]} dxe5 {[%emt 0:02:59]} 11. Rd1 {[%emt 0:01:26]} N8d7 {[%emt 0:05:21]} (11... Qe7 $11) 12. O-O {[%emt 0:09:44]} c6 {[%emt 0:15:27]} 13. Ng5 {[%emt 0:05:07][%cal Bf3g5,Bg5h3,Bh3f4][%mdl 32] [#]} e4 $146 {[%emt 0:05:24]} ({Predecessor:} 13... Qc7 14. Nge4 Nxe4 15. Nxe4 Nf6 16. Nd6 Re6 17. c5 Re7 18. Rd2 Nd5 19. Nxc8 Rxc8 {0-1 (60) Shaposhnikov,E (2576)-Teterev,V (2486) St Petersburg 2018}) 14. Rd4 $1 {[%emt 0:00:51]} ({Stronger than} 14. Ncxe4 Nxe4 15. Nxe4 Bxb2 $17) 14... c5 {[%emt 0:11:26]} 15. Rd2 {[%emt 0:00:35][%cal Oc3b5]} Qe7 {[%emt 0:00:30]} 16. Nb5 {[%emt 0:02:56] And now Nc7 would win.} h6 {[%emt 0:05:42]} 17. Nh3 {[%emt 0:01:04] White has more active pieces.} ({Inferior is} 17. Nc7 hxg5 18. Nxa8 Nf8 $15) 17... Ne5 {[%emt 0:03:41]} 18. Nf4 {[%emt 0:00:20]} Bf5 {[%emt 0:00:54]} 19. Nd6 {[%emt 0:00:20]} Red8 {[%emt 0:00:06]} 20. Nxf5 {[%emt 0:02:17]} gxf5 {[%emt 0:00:02]} 21. Rfd1 {[%emt 0:00:29] Hoping for Rxd8+.} Ng6 {[%emt 0:01:05] [#]} 22. Rxd8+ {[%emt 0:05:16]} (22. Bxf6 $1 $16 Qxf6 23. Nd5) 22... Rxd8 $14 {[%emt 0:00:03]} 23. Rxd8+ {[%emt 0:00:30]} (23. Bxf6 {simplifies} Rxd1+ 24. Qxd1 Qxf6 25. Nh5) 23... Qxd8 {[%emt 0:00:02]} 24. Qd1 {[%emt 0:00:31]} Qe7 {[%emt 0:02:55]} 25. Bxf6 {[%emt 0:06:40]} Qxf6 {[%emt 0:00:27]} 26. Nd5 {[%emt 0:05:09]} Qb2 {[%emt 0:00:22]} 27. a4 {[%emt 0:00:05]} Kf8 {[%emt 0:03:50] [#]} 28. g3 {[%emt 0:00:18]} ({White should try} 28. Bf1 $1 $16) 28... Qa1 $1 $11 {[%emt 0:01:28]} 29. Qxa1 {[%emt 0:02:56]} Bxa1 {[%emt 0:00:01][%mdl 4096] Endgame KBN-KBN} 30. Bf1 {[%emt 0:00:44]} Ne5 $1 {[%emt 0:02:26]} 31. Bh3 {[%emt 0:00:06]} Ng4 {[%emt 0:00:25]} 32. Kg2 {[%emt 0:02:05]} Be5 {[%emt 0:00:46] The position is equal.} 33. Kg1 {[%emt 0:03:25]} Ke8 {[%emt 0:00:35]} 34. Bg2 {[%emt 0:02:37]} Kd7 {[%emt 0:01:01]} 35. h3 {[%emt 0:14:09] Black defended with fortune.   Weighted Error Value: White=0.11 (very precise) /Black=0.16 (very precise)} 1/2-1/2